bitfinex-derivatives/quotes_BTCF0:USTF0_20241015
["timestamp","ask_amount","ask_price","bid_price","bid_amount"]
[1728955127248,0.17,65931.0,65928.0,0.61318512]
[1728955127465,0.19669569,65931.0,65930.0,0.0004]
[1728955127660,0.17,65934.0,65930.0,0.61358208]
[1728955127864,0.17,65934.0,65931.0,0.76388032]
[1728955128160,0.17,65934.0,65933.0,0.0004]
[1728955128354,0.17,65934.0,65933.0,0.61358208]
[1728955129649,0.17,65934.0,65933.0,0.42262196]
[1728955129851,0.171,65934.0,65933.0,0.42262196]
[1728955130256,0.171,65934.0,65933.0,0.61356918]
[1728955130554,0.172,65934.0,65933.0,0.61356918]
[1728955131060,0.172,65934.0,65933.0,0.61956918]
[1728955132069,0.172,65934.0,65933.0,0.42862196]
[1728955132363,0.3643,65941.0,65933.0,0.0064]
[1728955132557,0.17,65934.0,65933.0,0.0064]
[1728955133555,0.17,65934.0,65933.0,0.0054]
[1728955134366,0.17,65934.0,65933.0,0.0034]
[1728955134562,0.171,65934.0,65933.0,0.0054]
[1728955135864,0.19795058,65934.0,65933.0,0.0054]
[1728955139568,0.15999157,65934.0,65933.0,0.42759909]
[1728955140962,0.15999157,65934.0,65933.0,0.533779]
[1728955141562,0.15999157,65934.0,65933.0,0.36793608]
[1728955142365,0.15999157,65934.0,65933.0,0.42760233]
[1728955142558,0.15999157,65934.0,65933.0,0.36795055]
[1728955142969,0.15999157,65934.0,65933.0,0.26175814]
[1728955143870,0.15999157,65934.0,65933.0,0.53380628]
[1728955146070,0.24795058,65934.0,65933.0,0.26175814]
[1728955147266,0.24795058,65934.0,65933.0,0.26176827]
[1728955147470,0.24795058,65934.0,65933.0,0.0054]
[1728955148163,0.13795058,65934.0,65933.0,0.0054]
[1728955151269,0.24895058,65934.0,65933.0,0.0054]
[1728955151475,0.13895058,65934.0,65933.0,0.0054]
[1728955152171,0.24895058,65934.0,65933.0,0.0064]
[1728955152371,0.13895058,65934.0,65933.0,0.0064]
[1728955154572,0.111,65934.0,65933.0,0.53480966]
[1728955154968,0.02881327,65934.0,65933.0,0.2627672]
[1728955155170,0.13881327,65934.0,65933.0,0.2627672]
[1728955156578,0.13881327,65934.0,65933.0,0.26275075]
[1728955161472,0.13881327,65934.0,65933.0,0.26275932]
[1728955161688,0.22,65934.0,65933.0,0.42860427]
[1728955162481,0.1668547,65934.0,65933.0,0.42860427]
[1728955162686,0.1668547,65934.0,65933.0,0.26275932]
[1728955162876,0.19482938,65934.0,65933.0,0.26275932]
[1728955163577,0.55562938,65934.0,65933.0,0.26275932]
[1728955165582,0.55562938,65934.0,65933.0,0.12202456]
[1728955166484,0.60877468,65934.0,65933.0,0.12202456]
[1728955169584,0.60877468,65934.0,65933.0,0.0064]
[1728955174886,0.49877468,65934.0,65933.0,0.0064]
[1728955175392,0.60877468,65934.0,65933.0,0.0064]
[1728955177685,0.60877468,65934.0,65933.0,0.26276945]
[1728955178986,0.60877468,65934.0,65933.0,0.53484084]
[1728955179385,0.60877468,65934.0,65933.0,0.26276945]
[1728955179586,0.49877468,65934.0,65933.0,0.26276945]
[1728955180592,0.49877468,65934.0,65933.0,0.26276949]
[1728955180787,0.60877468,65934.0,65933.0,0.26276949]
[1728955181190,0.4708,65934.0,65933.0,0.36900175]
[1728955181486,0.5808,65934.0,65933.0,0.26276949]
[1728955182783,0.60841663,65934.0,65933.0,0.26276949]
[1728955184382,0.49841663,65934.0,65933.0,0.26276949]
[1728955184588,0.60841663,65934.0,65933.0,0.26276949]
[1728955185286,0.60841663,65934.0,65933.0,0.0064]
[1728955185490,0.60841663,65934.0,65933.0,0.26278907]
[1728955186281,2.10841663,65934.0,65933.0,0.26278907]
[1728955186887,1.88841663,65934.0,65933.0,0.26278907]
[1728955187092,2.10841663,65934.0,65933.0,0.26278907]
[1728955187884,2.10841663,65934.0,65933.0,0.12203798]
[1728955190297,2.10841663,65934.0,65933.0,0.12203382]
[1728955192280,1.99841663,65934.0,65933.0,0.26278148]
[1728955192483,0.4708,65934.0,65933.0,0.26278148]
[1728955192684,0.51737489,65934.0,65933.0,0.0064]
[1728955193499,2.01737489,65934.0,65933.0,0.0064]
[1728955193694,2.04410152,65934.0,65933.0,0.0064]
[1728955195586,1.99752663,65934.0,65933.0,0.0064]
[1728955195792,0.3608,65940.0,65933.0,1.0614]
[1728955195988,0.11,65937.0,65934.0,0.0545]
[1728955196192,0.11,65937.0,65935.0,0.0498]
[1728955197902,0.111,65937.0,65935.0,0.0538]
[1728955199297,0.112,65937.0,65935.0,0.0578]
[1728955199695,0.112,65937.0,65936.0,0.11561928]
[1728955200902,0.112,65937.0,65936.0,0.12361928]
[1728955201589,0.0035,65945.0,65937.0,0.45496]
[1728955201791,0.0106,65951.0,65946.0,0.07583]
[1728955201997,0.4708,65954.0,65950.0,0.20134118]
[1728955202188,1.575817,65958.0,65953.0,0.09134118]
[1728955202189,0.075818,65957.0,65953.0,0.09134118]
[1728955202385,0.075818,65957.0,65956.0,0.0004]
[1728955204001,0.081818,65957.0,65956.0,0.0004]
[1728955204412,0.091818,65957.0,65956.0,0.06090747]
[1728955204905,0.091818,65957.0,65956.0,0.0004]
[1728955205400,0.091818,65957.0,65955.0,0.04536554]
[1728955205401,0.09950448,65957.0,65955.0,0.04536554]
[1728955205692,0.075825,65951.0,65950.0,0.0004]
[1728955205898,0.185825,65951.0,65950.0,0.0004]
[1728955207002,0.189825,65951.0,65950.0,0.0004]
[1728955207500,0.075832,65945.0,65944.0,0.0004]
[1728955207697,0.71893238,65945.0,65937.0,0.03504561]
[1728955208000,0.11,65938.0,65937.0,0.03504561]
[1728955208201,0.21098062,65938.0,65937.0,0.03504561]
[1728955208794,0.27324024,65938.0,65934.0,0.0533]
[1728955208985,0.11,65935.0,65934.0,0.0533]
[1728955209190,0.27324024,65935.0,65934.0,0.0533]
[1728955209390,0.21098062,65935.0,65934.0,0.0533]
[1728955209986,0.39682362,65935.0,65934.0,0.0533]
[1728955210186,0.39782362,65935.0,65934.0,0.0603]
[1728955210597,0.42473526,65935.0,65934.0,0.007]
[1728955210798,1.92473526,65935.0,65930.0,0.0004]
[1728955210999,0.16324024,65934.0,65930.0,0.0004]
[1728955211399,0.16324024,65934.0,65932.0,0.11]
[1728955211703,0.16324024,65934.0,65930.0,0.076249]
[1728955212295,0.16324354,65934.0,65930.0,0.437049]
[1728955212492,0.16324354,65934.0,65930.0,0.437969]
[1728955212797,0.16524354,65934.0,65933.0,0.013]
[1728955213796,0.16524354,65934.0,65926.0,0.16459937]
[1728955214002,0.10098392,65933.0,65926.0,0.16459937]
[1728955214299,0.10098392,65932.0,65926.0,0.16459937]
[1728955214502,0.06425962,65934.0,65930.0,0.075849]
[1728955214503,0.10098392,65931.0,65930.0,0.075849]
[1728955214698,0.002,65934.0,65930.0,0.075849]
[1728955214891,0.002,65934.0,65933.0,0.0004]
[1728955216705,0.002,65934.0,65933.0,0.0034]
[1728955217008,0.001,65934.0,65933.0,0.0034]
[1728955217304,0.002,65934.0,65933.0,0.0034]
[1728955222706,0.04857634,65934.0,65933.0,0.0034]
[1728955223605,1.32800043,65934.0,65920.0,0.0505]
[1728955223798,0.5408,65921.0,65906.0,0.0035]
[1728955223999,0.245876,65907.0,65906.0,0.02783921]
[1728955224204,0.21657634,65907.0,65903.0,0.3608]
[1728955224407,0.17,65904.0,65903.0,0.3608]
[1728955224795,0.17,65904.0,65903.0,0.816]
[1728955225095,0.18,65904.0,65897.0,0.0521]
[1728955225397,0.18,65905.0,65897.0,0.0521]
[1728955225398,0.075885,65899.0,65897.0,0.0521]
[1728955225597,0.04659273,65898.0,65890.0,0.4144]
[1728955225801,0.075889,65896.0,65891.0,0.0498]
[1728955226005,0.18,65893.0,65891.0,0.0498]
[1728955227201,0.181,65893.0,65891.0,0.0498]
[1728955227800,0.181,65893.0,65891.0,0.125693]
[1728955228002,0.001,65904.0,65900.0,0.075883]
[1728955228200,0.001,65904.0,65903.0,0.0004]
[1728955228808,0.17,65905.0,65903.0,0.0004]
[1728955229107,0.17,65905.0,65904.0,0.0004]
[1728955229804,0.17,65905.0,65904.0,0.11607388]
[1728955230001,0.171,65905.0,65904.0,0.11607388]
[1728955230307,0.181,65905.0,65904.0,0.11607388]
[1728955230511,0.181,65905.0,65904.0,0.19148071]
[1728955230708,0.182,65905.0,65904.0,0.07580683]
[1728955231121,0.182,65905.0,65904.0,0.0004]
[1728955231406,0.5428,65905.0,65904.0,0.0004]
[1728955236019,0.3628,65905.0,65904.0,0.0004]
[1728955236517,0.5428,65905.0,65904.0,0.0004]
[1728955237108,0.5428,65905.0,65904.0,0.07580683]
[1728955237308,0.5428,65905.0,65904.0,0.19148556]
[1728955237714,0.5428,65905.0,65904.0,0.07580683]
[1728955237914,0.5428,65905.0,65904.0,0.0004]
[1728955238422,0.3628,65905.0,65904.0,0.1704]
[1728955238611,0.3628,65905.0,65904.0,0.2215]
[1728955239314,0.002,65905.0,65904.0,0.2215]
[1728955243517,0.002,65905.0,65904.0,0.0515]
[1728955243912,0.172,65905.0,65904.0,0.0515]
[1728955244117,0.182,65905.0,65904.0,0.0515]
[1728955244317,0.172,65905.0,65904.0,0.0515]
[1728955244931,0.21859162,65905.0,65904.0,0.0515]
[1728955245222,0.38336544,65905.0,65904.0,0.0515]
[1728955245417,0.43780738,65905.0,65904.0,0.0515]
[1728955245623,0.27303356,65905.0,65904.0,0.0515]
[1728955246010,0.21859162,65905.0,65904.0,0.0515]
[1728955246421,0.04859162,65905.0,65904.0,0.0515]
[1728955246719,0.04859162,65905.0,65904.0,0.2736]
[1728955247115,0.04859162,65905.0,65904.0,0.1036]
[1728955249723,0.002,65905.0,65904.0,0.1036]
[1728955252123,0.182,65905.0,65904.0,0.0004]
[1728955252318,0.21858826,65905.0,65904.0,0.0004]
[1728955252921,0.172,65905.0,65904.0,0.0004]
[1728955253733,0.182,65905.0,65904.0,0.0004]
[1728955254429,0.172,65905.0,65904.0,0.0004]
[1728955259827,0.27303537,65905.0,65904.0,0.0004]
[1728955260531,0.27303429,65905.0,65904.0,0.0004]
[1728955260727,0.21397284,65905.0,65904.0,0.0004]
[1728955260919,0.04859245,65905.0,65904.0,0.0004]
[1728955261429,0.21859245,65905.0,65904.0,0.0004]
[1728955261633,0.28303278,65905.0,65904.0,0.0004]
[1728955262233,0.33263278,65905.0,65904.0,0.0004]
[1728955262434,0.51263278,65905.0,65895.0,0.0035]
[1728955262629,0.075888,65896.0,65891.0,0.0035]
[1728955262835,0.34537151,65893.0,65888.0,2.001]
[1728955263031,1.54659569,65892.0,65888.0,2.001]
[1728955263333,0.04659569,65891.0,65888.0,2.001]
[1728955263736,0.04659569,65893.0,65890.0,0.81612]
[1728955263934,0.04659569,65892.0,65890.0,0.3608]
[1728955264127,0.04659569,65891.0,65890.0,0.3608]
[1728955264323,0.001,65892.0,65890.0,0.3618]
[1728955264524,0.04659569,65891.0,65890.0,0.5418]
[1728955265429,0.04759569,65891.0,65890.0,0.5418]
[1728955265825,0.04759569,65891.0,65890.0,0.5408]
[1728955266022,0.04859569,65891.0,65890.0,0.181]
[1728955267838,0.002,65891.0,65890.0,0.181]
[1728955268935,0.002,65891.0,65890.0,0.171]
[1728955269133,0.002,65891.0,65890.0,0.23166364]
[1728955269436,0.002,65891.0,65890.0,0.16871199]
[1728955269636,0.002,65891.0,65890.0,1.22532]
[1728955269826,0.002,65891.0,65890.0,1.30072683]
[1728955270222,0.0035,65899.0,65890.0,1.30072683]
[1728955270426,0.0035,65903.0,65901.0,0.075882]
[1728955270626,0.0035,65903.0,65898.0,0.1704]
[1728955270627,0.0035,65910.0,65904.0,0.075879]
[1728955270929,0.075871,65911.0,65909.0,0.0004]
[1728955271539,0.075871,65911.0,65910.0,0.0004]
[1728955272038,1.575871,65911.0,65910.0,0.0004]
[1728955273725,1.575871,65911.0,65909.0,0.0014]
[1728955273726,1.756871,65911.0,65909.0,0.0014]
[1728955273931,0.07588,65903.0,65902.0,0.0004]
[1728955274136,0.25588,65903.0,65902.0,0.0004]
[1728955275534,0.25688,65903.0,65902.0,0.0024]
[1728955275928,0.25688,65903.0,65902.0,0.0044]
[1728955276132,0.25788,65903.0,65902.0,0.0044]
[1728955276738,0.24788,65903.0,65902.0,0.0044]
[1728955277241,0.002,65903.0,65902.0,0.0044]
[1728955278444,0.182,65903.0,65902.0,0.0044]
[1728955278633,0.20978769,65903.0,65902.0,0.0044]
[1728955279430,0.19978769,65903.0,65902.0,0.0044]
[1728955281143,0.02978769,65903.0,65902.0,0.0044]
[1728955282041,0.20978769,65903.0,65902.0,0.0044]
[1728955282939,0.31082379,65903.0,65902.0,0.0044]
[1728955284638,0.36422379,65903.0,65902.0,0.0044]
[1728955285941,0.18422379,65903.0,65902.0,0.0044]
[1728955286142,0.12978235,65903.0,65902.0,0.0044]
[1728955287348,0.18422566,65903.0,65902.0,0.0044]
[1728955289837,0.08318769,65903.0,65902.0,0.0044]
[1728955297948,0.18423706,65903.0,65902.0,0.0044]
[1728955298157,0.07589,65894.0,65893.0,0.0035]
[1728955298353,0.075894,65891.0,65890.0,0.052]
[1728955298551,0.075896,65890.0,65888.0,2.00092]
[1728955298746,1.72659891,65889.0,65888.0,2.0]
[1728955298953,1.84335207,65889.0,65888.0,2.0]
[1728955299551,1.78104937,65889.0,65888.0,2.0]
[1728955300152,1.78204937,65889.0,65888.0,2.0]
[1728955300749,1.78304937,65889.0,65888.0,2.0]
[1728955301352,1.60304937,65889.0,65888.0,2.0]
[1728955302061,1.62995359,65889.0,65888.0,2.0]
[1728955304864,1.52890422,65889.0,65888.0,2.11569456]
[1728955305155,0.02890422,65889.0,65888.0,2.11569456]
[1728955305357,0.02890422,65889.0,65888.0,2.11569784]
[1728955306059,1.52890422,65889.0,65888.0,2.11569784]
[1728955307763,1.52890422,65889.0,65888.0,2.07580306]
[1728955309554,1.52890422,65889.0,65888.0,2.11570023]
[1728955310455,1.52890422,65889.0,65888.0,2.19150889]
[1728955311965,1.52890422,65889.0,65888.0,2.11570023]
[1728955312163,0.02890422,65889.0,65888.0,2.11570023]
[1728955313061,0.05445166,65896.0,65892.0,0.075892]
[1728955313262,0.0465987,65895.0,65893.0,0.053]
[1728955313456,0.02792491,65897.0,65894.0,0.052]
[1728955313457,0.00076,65897.0,65894.0,0.052]
[1728955313660,0.3608,65898.0,65896.0,0.0004]
[1728955313859,0.3608,65898.0,65897.0,0.0004]
[1728955315061,0.3618,65898.0,65897.0,0.0004]
[1728955315765,0.3893311,65898.0,65897.0,0.0004]
[1728955316273,0.3903311,65898.0,65897.0,0.0004]
[1728955318169,0.43692861,65898.0,65897.0,0.0004]
[1728955318469,0.07612861,65898.0,65897.0,0.0004]
[1728955319666,0.07612737,65898.0,65897.0,0.0004]
[1728955320073,0.0295311,65898.0,65897.0,0.0004]
[1728955321863,0.3903311,65898.0,65897.0,0.0004]
[1728955322669,0.4398311,65898.0,65897.0,0.0004]
[1728955323075,0.6198311,65898.0,65897.0,0.0004]
[1728955324386,0.6198311,65898.0,65896.0,0.0004]
[1728955324387,0.075896,65889.0,65888.0,2.0035]
[1728955324671,0.616696,65889.0,65888.0,2.0]
[1728955324869,0.5408,65889.0,65888.0,2.0]
[1728955325565,0.18,65889.0,65888.0,2.0]
[1728955327076,0.18,65892.0,65891.0,0.075894]
[1728955327280,0.18,65892.0,65891.0,0.076294]
[1728955328367,0.18,65892.0,65891.0,0.246294]
[1728955328368,0.001,65892.0,65891.0,0.246294]
[1728955328573,0.001,65892.0,65891.0,0.30181055]
[1728955328767,0.002,65892.0,65891.0,0.256294]
[1728955329276,0.002,65892.0,65891.0,0.246294]
[1728955329574,0.002,65892.0,65891.0,0.30694663]
[1728955329779,0.002,65892.0,65891.0,0.246294]
[1728955329969,0.002,65892.0,65891.0,0.30696748]
[1728955330971,0.002,65892.0,65891.0,0.076294]
[1728955331987,0.002,65892.0,65891.0,0.13696748]
[1728955332669,0.002,65892.0,65891.0,0.076294]
[1728955333071,0.002,65892.0,65891.0,0.31696748]
[1728955333472,0.002,65892.0,65891.0,0.256294]
[1728955333669,1.5035,65901.0,65900.0,0.075883]
[1728955333873,0.00076,65901.0,65900.0,0.12177525]
[1728955334077,0.02699232,65905.0,65904.0,0.075879]
[1728955334280,1.5,65905.0,65904.0,0.076279]
[1728955335181,1.77103096,65905.0,65904.0,0.076279]
[1728955337090,1.60103096,65905.0,65904.0,0.076279]
[1728955337387,0.26669292,65905.0,65904.0,0.076279]
[1728955337688,0.10103029,65905.0,65904.0,0.076279]
[1728955337888,0.04658975,65905.0,65904.0,0.076279]
[1728955338588,0.21658975,65905.0,65904.0,0.076279]
[1728955339086,0.27103029,65905.0,65904.0,0.076279]
[1728955341980,0.27103173,65905.0,65904.0,0.076279]
[1728955342377,0.64183173,65905.0,65904.0,0.076279]
[1728955343077,2.0408,65905.0,65904.0,0.076279]
[1728955343277,1.67,65905.0,65904.0,0.076279]
[1728955346298,1.68,65905.0,65904.0,0.076279]
[1728955348496,2.0408,65905.0,65904.0,0.076279]
[1728955348693,2.2208,65905.0,65904.0,0.0004]
[1728955348895,2.2208,65905.0,65902.0,0.075881]
[1728955349101,1.8608,65905.0,65902.0,0.07588]
[1728955349294,0.17,65903.0,65902.0,0.07588]
[1728955349494,0.18,65903.0,65902.0,0.07588]
[1728955350103,0.22659522,65903.0,65902.0,0.07588]
[1728955350298,0.04659522,65903.0,65902.0,0.07588]
[1728955350700,0.04659522,65903.0,65902.0,0.07688]
[1728955351197,2.20725689,65905.0,65902.0,0.07688]
[1728955351503,0.26674022,65904.0,65902.0,0.07688]
[1728955351702,0.04659565,65903.0,65902.0,0.07688]
[1728955351901,0.10104326,65904.0,65902.0,0.07688]
[1728955352203,0.04659565,65903.0,65902.0,0.07588]
[1728955352400,0.04659565,65903.0,65902.0,0.07688]
[1728955352593,0.10104326,65904.0,65902.0,0.07688]
[1728955352798,0.04659565,65903.0,65902.0,0.07688]
[1728955353191,0.10104326,65904.0,65902.0,0.07688]
[1728955353396,0.40739565,65903.0,65902.0,0.07688]
[1728955353596,0.46184326,65903.0,65902.0,0.07688]
[1728955353797,0.46184326,65903.0,65902.0,0.001]
[1728955356112,0.46184616,65903.0,65902.0,0.001]
[1728955356811,0.46184616,65903.0,65900.0,0.0004]
[1728955356812,1.46259855,65903.0,65900.0,0.0004]
[1728955357116,0.5408,65901.0,65900.0,0.0004]
[1728955357312,0.64184869,65901.0,65900.0,0.0004]
[1728955357610,1.14728869,65901.0,65900.0,0.0004]
[1728955358010,1.04624,65901.0,65900.0,0.0014]
[1728955359005,1.04724,65901.0,65900.0,0.0014]
[1728955360912,0.592,65901.0,65900.0,0.0014]
[1728955361106,0.3618,65901.0,65900.0,0.0014]
[1728955361410,0.001,65901.0,65900.0,0.0014]
[1728955361611,0.00076,65905.0,65904.0,0.075879]
[1728955361817,0.17076,65912.0,65911.0,0.075871]
[1728955362008,1.52723682,65912.0,65911.0,0.076271]
[1728955363516,1.69723682,65912.0,65911.0,0.076271]
[1728955363821,1.70523682,65912.0,65911.0,0.076271]
[1728955364720,1.513,65912.0,65911.0,0.246271]
[1728955364927,0.013,65912.0,65911.0,0.246271]
[1728955365816,1.50076,65918.0,65911.0,1.301431]
[1728955366015,0.0035,65923.0,65917.0,0.3612]
[1728955366321,0.0035,65928.0,65922.0,0.0004]
[1728955366518,0.17,65934.0,65924.0,0.3608]
[1728955366519,1.5,65927.0,65924.0,0.3608]
[1728955367721,1.512,65927.0,65924.0,0.3608]
[1728955367917,1.512,65927.0,65925.0,0.075855]
[1728955368527,1.521,65927.0,65925.0,0.075855]
[1728955369026,1.521,65927.0,65926.0,0.0521]
[1728955369222,0.021,65927.0,65926.0,0.0521]
[1728955369521,0.03802451,65934.0,65926.0,0.0521]
[1728955369522,0.0106,65934.0,65927.0,0.075852]
[1728955369819,0.0106,65934.0,65926.0,0.4129]
[1728955369820,0.0106,65934.0,65933.0,0.3612]
[1728955370021,0.19698434,65938.0,65937.0,0.075841]
[1728955370217,0.19698434,65938.0,65937.0,0.076241]
[1728955370418,1.67076,65942.0,65940.0,0.075837]
[1728955370725,1.69743636,65942.0,65941.0,0.0004]
[1728955372224,1.99355711,65942.0,65934.0,0.03036181]
[1728955372411,0.17,65936.0,65935.0,0.075843]
[1728955372610,0.21656544,65936.0,65935.0,0.075843]
[1728955372826,0.27097679,65936.0,65935.0,0.075843]
[1728955373821,0.27097679,65936.0,65935.0,0.076843]
[1728955374023,0.27097679,65936.0,65935.0,0.001]
[1728955374724,0.28097679,65936.0,65935.0,0.002]
[1728955377119,0.28097679,65936.0,65933.0,0.32688001]
[1728955377320,0.10097679,65935.0,65933.0,0.32688001]
[1728955377514,0.04656544,65934.0,65933.0,0.32688001]
[1728955377717,0.075853,65927.0,65925.0,0.0035]
[1728955377915,0.075853,65927.0,65920.0,0.3608]
[1728955377916,0.075855,65925.0,65920.0,0.3608]
[1728955378123,0.04656544,65924.0,65918.0,0.1509]
[1728955378326,0.17,65921.0,65918.0,0.1509]
[1728955378517,0.10097679,65920.0,65918.0,0.1509]
[1728955378718,0.04656544,65919.0,65918.0,0.1509]
[1728955379130,0.05441135,65920.0,65918.0,0.1509]
[1728955379131,0.10097679,65920.0,65918.0,0.1509]
[1728955379323,0.10097679,65920.0,65919.0,0.0004]
[1728955379523,0.05441135,65920.0,65919.0,0.0004]
[1728955380229,0.41521135,65920.0,65919.0,0.0004]
[1728955380740,0.41521135,65920.0,65919.0,0.0014]
[1728955381130,0.46179135,65920.0,65919.0,0.0044]
[1728955381628,0.41521135,65920.0,65919.0,0.0044]
[1728955381827,0.3608,65920.0,65919.0,0.0044]
[1728955382933,0.3608,65920.0,65919.0,0.0034]
[1728955383133,0.3618,65920.0,65919.0,0.0034]
[1728955384237,0.3618,65920.0,65919.0,0.0014]
[1728955387824,0.3618,65920.0,65911.0,0.0004]
[1728955388025,0.17,65912.0,65911.0,0.0004]
[1728955388426,0.36,65912.0,65902.0,0.0035]
[1728955388730,0.5408,65905.0,65899.0,0.0035]
[1728955388935,0.5408,65905.0,65895.0,0.0035]
[1728955389234,0.3608,65905.0,65896.0,0.075888]
[1728955389541,0.5308,65905.0,65896.0,0.075888]
[1728955389741,0.55750032,65905.0,65896.0,0.075888]
[1728955390335,2.05750032,65905.0,65904.0,0.0014]
[1728955390541,1.88750032,65905.0,65904.0,0.0014]
[1728955390733,1.5,65905.0,65904.0,0.080279]
[1728955390934,0.0488,65911.0,65904.0,0.080279]
[1728955391134,0.2188,65911.0,65910.0,0.0004]
[1728955391335,1.7188,65911.0,65910.0,0.0004]
[1728955391639,1.76538657,65911.0,65910.0,0.0004]
[1728955392648,1.77038657,65911.0,65910.0,0.0004]
[1728955393444,0.27038657,65911.0,65910.0,0.0004]
[1728955394143,0.27338657,65911.0,65910.0,0.0004]
[1728955394730,0.008,65911.0,65910.0,0.0004]
[1728955396445,0.005,65911.0,65910.0,0.0004]
[1728955396649,0.13703103,65915.0,65910.0,0.0034]
[1728955396850,0.13703103,65915.0,65914.0,0.0004]
[1728955397046,0.13703103,65915.0,65914.0,0.06079015]
[1728955397238,0.13703103,65915.0,65914.0,0.0004]
[1728955397839,0.13703103,65915.0,65914.0,0.04569002]
[1728955398541,0.13703103,65915.0,65914.0,0.0004]
[1728955398846,0.13703103,65915.0,65914.0,0.04569002]
[1728955399046,0.13703103,65915.0,65914.0,0.0004]
[1728955399449,0.13703103,65915.0,65914.0,0.04569002]
[1728955399847,0.14303103,65915.0,65914.0,0.04569002]
[1728955400349,0.13903103,65915.0,65914.0,0.04569002]
[1728955400738,0.14103103,65915.0,65914.0,0.0004]
[1728955401448,0.14103103,65915.0,65914.0,0.04569002]
[1728955401642,0.14103103,65915.0,65914.0,0.0004]
[1728955401846,0.07587,65912.0,65910.0,0.0004]
[1728955402041,0.5308,65911.0,65910.0,0.0004]
[1728955402248,2.0308,65911.0,65910.0,0.0004]
[1728955403250,2.0328,65911.0,65910.0,0.0004]
[1728955403658,2.13382746,65911.0,65910.0,0.0004]
[1728955404758,0.10302746,65911.0,65910.0,0.0004]
[1728955404966,0.05158881,65911.0,65910.0,0.0004]
[1728955405156,0.04958881,65911.0,65910.0,0.0004]
[1728955405352,0.05458881,65911.0,65910.0,0.0004]
[1728955406472,0.05158881,65911.0,65910.0,0.0054]
[1728955406658,0.05158051,65911.0,65910.0,0.0054]
[1728955406851,0.04658051,65911.0,65910.0,0.0074]
[1728955408260,0.04658051,65911.0,65910.0,0.0064]
[1728955410865,0.245863,65918.0,65910.0,0.0064]
[1728955411060,0.245863,65918.0,65917.0,0.0004]
[1728955411458,1.745863,65918.0,65917.0,0.0004]
[1728955412961,0.17,65922.0,65917.0,0.0004]
[1728955413158,0.005,65918.0,65917.0,0.0004]
[1728955413463,0.005,65918.0,65917.0,0.10912166]
[1728955413666,0.005,65918.0,65917.0,0.0485]
[1728955414064,0.17,65918.0,65917.0,0.0004]
[1728955414262,0.005,65922.0,65917.0,0.076263]
[1728955414456,0.003,65918.0,65917.0,0.076263]
[1728955415161,0.003,65918.0,65917.0,0.10373078]
[1728955415569,0.008,65918.0,65917.0,0.10373078]
[1728955416667,0.005,65918.0,65917.0,0.10373078]
[1728955417169,0.005,65918.0,65917.0,0.076263]
[1728955417356,0.005,65918.0,65917.0,1.19195699]
[1728955417562,0.008,65918.0,65917.0,1.19195699]
[1728955418455,0.008,65918.0,65917.0,0.04582649]
[1728955418669,0.008,65918.0,65917.0,0.0004]
[1728955420269,0.052,65918.0,65917.0,0.0004]
[1728955420479,0.052,65918.0,65910.0,0.0004]
[1728955420480,0.07587,65912.0,65910.0,0.0004]
[1728955420657,0.17,65911.0,65910.0,0.0004]
[1728955421770,0.17,65911.0,65910.0,0.0044]
[1728955422068,0.17,65911.0,65910.0,0.0064]
[1728955423074,0.17,65911.0,65910.0,0.0024]
[1728955423278,0.17,65911.0,65910.0,0.0064]
[1728955425663,0.27101858,65911.0,65910.0,0.0064]
[1728955430072,0.10101858,65911.0,65910.0,0.0064]
[1728955430378,0.04658471,65911.0,65910.0,0.0064]
[1728955430872,0.04658471,65911.0,65910.0,0.1764]
[1728955433277,0.04658471,65911.0,65910.0,0.0064]
[1728955433976,0.07587,65912.0,65910.0,0.05182649]
[1728955434171,0.07587,65912.0,65911.0,0.0004]
[1728955434564,0.07587,65912.0,65911.0,0.04582649]
[1728955435368,0.07587,65912.0,65911.0,0.0004]
[1728955436074,0.07587,65912.0,65911.0,0.0014]
[1728955437166,0.07587,65912.0,65911.0,0.0044]
[1728955437971,0.24587,65912.0,65911.0,0.0044]
[1728955439277,0.07587,65912.0,65911.0,0.0044]
[1728955440881,0.12245487,65912.0,65911.0,0.0044]
[1728955441487,0.17688892,65912.0,65911.0,0.0044]
[1728955441675,0.10101892,65912.0,65911.0,0.0044]
[1728955441989,0.04658487,65912.0,65911.0,0.0044]
[1728955442374,0.1010184,65912.0,65911.0,0.0044]
[1728955442871,0.04658487,65912.0,65911.0,0.441071]
[1728955443269,0.04658487,65912.0,65911.0,0.080271]
[1728955447585,0.04658487,65912.0,65911.0,0.250271]
[1728955448092,0.04658134,65912.0,65911.0,0.250271]
[1728955448894,0.07714716,65919.0,65911.0,0.250271]
[1728955449093,0.07364716,65919.0,65918.0,0.04590739]
[1728955449285,0.07364716,65919.0,65918.0,0.0004]
[1728955449476,0.07364716,65919.0,65918.0,0.04590739]
[1728955449683,0.07364716,65919.0,65918.0,0.0004]
[1728955450189,0.07364716,65919.0,65918.0,0.04590739]
[1728955450788,0.07864716,65919.0,65918.0,0.04590739]
[1728955451893,0.08264716,65919.0,65918.0,0.04590739]
[1728955452299,0.03584716,65919.0,65918.0,0.04590739]
[1728955452792,0.03584716,65919.0,65918.0,0.0004]
[1728955453184,0.03584716,65919.0,65918.0,0.04591177]
[1728955453497,0.03584716,65919.0,65918.0,0.0004]
[1728955455784,0.1368555,65919.0,65918.0,0.0004]
[1728955455993,0.05557999,65919.0,65918.0,0.1704]
[1728955457887,0.11000834,65919.0,65918.0,0.1704]
[1728955458088,0.05557999,65919.0,65918.0,0.1704]
[1728955458294,0.05557999,65919.0,65918.0,0.19723531]
[1728955458797,0.05442184,65925.0,65922.0,0.075858]
[1728955458992,0.3643,65930.0,65925.0,0.17]
[1728955459196,0.3608,65930.0,65929.0,0.0004]